fUST/lending_fUST_20250108
["ID","MTS","AMOUNT","RATE_DAILY","PERIOD"]
[348130621,1736347833856,-500.0,0.00019178,2]
[348130623,1736347833866,-151.0,0.00019178,2]
[348130625,1736347833876,-193.402684,0.00019178,2]
[348130627,1736347833886,-500.0,0.00019178,2]
[348130629,1736347833897,-158.171818,0.00019178,2]
[348130631,1736347833907,-500.0,0.00019178,2]
[348130633,1736347833918,-4640.49,0.00019178,2]
[348130635,1736347833929,-158.171818,0.00019178,2]
[348130637,1736347833940,-500.0,0.00019178,2]
[348130639,1736347833951,-151.0,0.00019178,2]
[348130641,1736347833961,-151.0,0.00019178,2]
[348130643,1736347833971,-500.0,0.00019178,2]
[348130645,1736347833982,-500.0,0.00019178,2]
[348130647,1736347833992,-500.0,0.00019178,2]
[348130649,1736347834003,-500.0,0.00019178,2]
[348130651,1736347834014,-500.0,0.00019178,2]
[348130653,1736347834024,-500.0,0.00019178,2]
[348130655,1736347834034,-1746.84,0.00019178,2]
[348130657,1736347834044,-500.0,0.00019178,2]
[348130659,1736347834054,-500.0,0.00019178,2]
[348130661,1736347834064,-500.0,0.00019178,2]
[348130663,1736347834074,-500.0,0.00019178,2]
[348130665,1736347834089,-500.0,0.00019178,2]
[348130667,1736347834100,-500.0,0.00019178,2]
[348130669,1736347834110,-500.0,0.00019178,2]
[348130671,1736347834121,-500.08080815,0.00019178,2]
[348130673,1736347834131,-500.0,0.00019178,2]
[348130675,1736347834142,-151.0,0.00019178,2]
[348130677,1736347834153,-500.0,0.00019178,2]
[348130679,1736347834163,-165.695992,0.00019178,2]
[348130681,1736347834173,-500.0,0.00019178,2]
[348130683,1736347834186,-151.0,0.00019178,2]
[348130685,1736347834196,-500.0,0.00019178,2]
[348130687,1736347834206,-165.695992,0.00019178,2]
[348130689,1736347834216,-500.0,0.00019178,2]
[348130691,1736347834228,-500.0,0.00019178,2]
[348130693,1736347834241,-151.0,0.00019178,2]
[348130695,1736347834252,-151.0,0.00019178,2]
[348130697,1736347834262,-507.12143138,0.00019178,2]
[348130699,1736347834272,-500.0,0.00019178,2]
[348130701,1736347834282,-152.76632429,0.00019178,2]
[348130703,1736347834292,-151.0,0.00019178,2]
[348130705,1736347834302,-500.0,0.00019178,2]
[348130707,1736347834313,-500.0,0.00019178,2]
[348130709,1736347834323,-503.27910956,0.00019178,2]
[348130711,1736347834337,-500.0,0.00019178,2]
[348130713,1736347834347,-500.0,0.00019178,2]
[348130715,1736347834358,-500.0,0.00019178,2]
[348130717,1736347834369,-500.0,0.00019178,2]
[348130719,1736347834379,-151.0,0.00019178,2]
[348130721,1736347834389,-151.0,0.00019178,2]
[348130723,1736347834401,-633.89895988,0.00019178,2]
[348130725,1736347834411,-500.0,0.00019178,2]
[348130727,1736347834422,-500.0,0.00019178,2]
[348130729,1736347834433,-500.0,0.00019178,2]
[348130731,1736347834443,-500.0,0.00019178,2]
[348130733,1736347834454,-500.0,0.00019178,2]
[348130735,1736347834464,-502.42349977,0.00019178,2]
[348130737,1736347834474,-500.0,0.00019178,2]
[348130739,1736347834485,-500.0,0.00019178,2]
[348130741,1736347834496,-500.0,0.00019178,2]
[348130743,1736347834508,-500.0,0.00019178,2]
[348130745,1736347834518,-500.0,0.00019178,2]
[348130747,1736347834529,-500.0,0.00019178,2]
[348130749,1736347834540,-500.0,0.00019178,2]
[348130751,1736347834550,-500.0,0.00019178,2]
[348130753,1736347834560,-1313.51,0.00019178,2]
[348130755,1736347834570,-500.0,0.00019178,2]
[348130757,1736347834582,-503.20831979,0.00019178,2]
[348130759,1736347834593,-500.0,0.00019178,2]
[348130761,1736347834603,-500.0,0.00019178,2]
[348130763,1736347834614,-286.17384162,0.00019178,2]
[348130765,1736347834624,-625.0003927,0.00019178,2]
[348130767,1736347834635,-502.96304683,0.00019178,2]
[348130769,1736347834645,-18529.65,0.00019178,2]
[348130771,1736347834655,-254.94367226,0.00019178,2]
[348130773,1736347834666,-595.82323534,0.00019178,2]
[348130775,1736347834675,-500.0,0.00019178,2]
[348130777,1736347834685,-500.0,0.00019178,2]
[348130779,1736347834695,-158.84436799,0.00019178,2]
[348130781,1736347834704,-500.0,0.00019178,2]
[348130783,1736347834714,-500.0,0.00019178,2]
[348130785,1736347834724,-671.3,0.00019178,2]
[348130787,1736347834734,-500.0,0.00019178,2]
[348130789,1736347834743,-500.0,0.00019178,2]
[348130791,1736347834753,-500.0,0.00019178,2]
[348130793,1736347834763,-500.0,0.00019178,2]
[348130795,1736347834772,-504.31901007,0.00019178,2]
[348130797,1736347834782,-500.0,0.00019178,2]
[348130799,1736347834792,-151.0,0.00019178,2]
[348130801,1736347834802,-500.0,0.00019178,2]
[348130803,1736347834812,-500.0,0.00019178,2]
[348130805,1736347834822,-881.98,0.00019178,2]
[348130808,1736347834836,-500.0,0.00019178,2]
[348130810,1736347834845,-151.0,0.00019178,2]
[348130811,1736347834855,-589.20054992,0.00019178,2]
[348130813,1736347834865,-500.0,0.00019178,2]
[348130815,1736347834875,-500.0,0.00019178,2]
[348130818,1736347834885,-500.0,0.00019178,2]
[348130820,1736347834895,-500.0,0.00019178,2]
[348130822,1736347834905,-810.98,0.00019178,2]
[348130824,1736347834915,-500.0,0.00019178,2]
[348130826,1736347834925,-500.0,0.00019178,2]
[348130828,1736347834937,-155.894687,0.00019178,2]
[348130830,1736347834948,-500.0,0.00019178,2]
[348130831,1736347834957,-688.48,0.00019178,2]
[348130834,1736347834969,-500.0,0.00019178,2]
[348130836,1736347834979,-500.0,0.00019178,2]
[348130838,1736347834989,-2400.37,0.00019178,2]
[348130840,1736347835000,-500.0,0.00019178,2]
[348130842,1736347835010,-500.0,0.00019178,2]
[348130844,1736347835020,-500.0,0.00019178,2]
[348130846,1736347835029,-500.0,0.00019178,2]
[348130848,1736347835039,-565.96,0.00019178,2]
[348130849,1736347835048,-500.0,0.00019178,2]
[348130852,1736347835059,-531.63,0.00019178,2]
[348130853,1736347835069,-500.0,0.00019178,2]
[348130856,1736347835082,-500.0,0.00019178,2]
[348130858,1736347835092,-833.25,0.00019178,2]
[348130860,1736347835102,-500.0,0.00019178,2]
[348130862,1736347835111,-500.0,0.00019178,2]
[348130864,1736347835123,-500.0,0.00019178,2]
[348130866,1736347835134,-500.0,0.00019178,2]
[348130867,1736347835144,-500.0,0.00019178,2]
[348130869,1736347835153,-500.0,0.00019178,2]
[348130871,1736347835163,-500.0,0.00019178,2]
[348130873,1736347835173,-645.93525747,0.00019178,2]
[348130875,1736347835182,-500.0,0.00019178,2]
[348130877,1736347835192,-151.0,0.00019178,2]
[348130879,1736347835202,-108.0733617,0.00019178,2]
[348130882,1736347835218,-391.9266383,0.00019178,2]
[348130884,1736347835229,-263.010995,0.00019178,2]
[348130886,1736347835240,-549.82930406,0.00019178,2]
[348130888,1736347835250,-132.32656264,0.00019178,2]
[348130890,1736347835262,-367.67343736,0.00019178,2]
[348130892,1736347835272,-363.68247921,0.00019178,2]
[348130894,1736347835282,-500.0,0.00019178,2]
[348130896,1736347835292,-526.7,0.00019178,2]
[348130898,1736347835302,-500.0,0.00019178,2]
[348130900,1736347835313,-500.0,0.00019178,2]
[348130902,1736347835323,-500.0,0.00019178,2]
[348130904,1736347835335,-535.97,0.00019178,2]
[348130906,1736347835344,-500.0,0.00019178,2]
[348130908,1736347835353,-635.67,0.00019178,2]
[348130910,1736347835362,-500.0,0.00019178,2]
[348130912,1736347835372,-500.0,0.00019178,2]
[348130914,1736347835381,-500.0,0.00019178,2]
[348130916,1736347835391,-151.0,0.00019178,2]
[348130918,1736347835401,-500.0,0.00019178,2]
[348130920,1736347835411,-500.0,0.00019178,2]
[348130922,1736347835421,-500.0,0.00019178,2]
[348130924,1736347835430,-557.5536,0.00019178,2]
[348130926,1736347835440,-1403.82,0.00019178,2]
[348130928,1736347835450,-500.0,0.00019178,2]
[348130930,1736347835459,-500.0,0.00019178,2]
[348130932,1736347835468,-500.0,0.00019178,2]
[348130934,1736347835478,-291.92406858,0.00019178,2]
[348130936,1736347835487,-151.0,0.00019178,2]
[348130938,1736347835497,-151.0,0.00019178,2]
[348130940,1736347835506,-500.0,0.00019178,2]
[348130942,1736347835516,-500.0,0.00019178,2]
[348130944,1736347835526,-500.0,0.00019178,2]
[348130946,1736347835535,-500.0,0.00019178,2]
[348130948,1736347835544,-1504.0,0.00019178,2]
[348130950,1736347835554,-816.35,0.00019178,2]
[348130952,1736347835564,-1113.1,0.00019178,2]
[348130954,1736347835574,-500.0,0.00019178,2]
[348130956,1736347835585,-500.0,0.00019178,2]
[348130958,1736347835594,-500.0,0.00019178,2]
[348130960,1736347835604,-615.57795334,0.00019178,2]
[348130962,1736347835614,-500.0,0.00019178,2]
[348130964,1736347835624,-151.0,0.00019178,2]
[348130966,1736347835634,-152.999976,0.00019178,2]
[348130968,1736347835644,-151.0,0.00019178,2]
[348130970,1736347835654,-500.0,0.00019178,2]
[348130972,1736347835663,-738.38,0.00019178,2]
[348130974,1736347835673,-500.0,0.00019178,2]
[348130976,1736347835683,-500.0,0.00019178,2]
[348130978,1736347835692,-668.31,0.00019178,2]
[348130980,1736347835701,-500.0,0.00019178,2]
[348130982,1736347835710,-500.0,0.00019178,2]
[348130984,1736347835719,-500.0,0.00019178,2]
[348130986,1736347835729,-500.0,0.00019178,2]
[348130988,1736347835739,-500.0,0.00019178,2]
[348130990,1736347835748,-500.0,0.00019178,2]
[348130992,1736347835758,-500.0,0.00019178,2]
[348130994,1736347835767,-500.0,0.00019178,2]
[348130996,1736347835777,-500.0,0.00019178,2]
[348130998,1736347835787,-500.0,0.00019178,2]
[348131000,1736347835799,-500.0,0.00019178,2]
[348131002,1736347835809,-500.0,0.00019178,2]
[348131004,1736347835818,-443.87476606,0.00019305,2]
[348131006,1736347835828,-203.230417,0.00019452,2]
[348131008,1736347835838,-203.230417,0.00019452,2]
[348131010,1736347835848,-151.0,0.00019452,2]
[348131012,1736347835859,-151.0,0.00019452,2]
[348131014,1736347835870,-715.667858,0.00019452,2]
[348131016,1736347835879,-500.0,0.00019452,3]
[348131018,1736347835889,-500.0,0.00019452,3]
[348131020,1736347835899,-500.0,0.00019452,3]
[348131022,1736347835908,-387.056497,0.00019452,2]
[348131024,1736347835918,-387.056497,0.00019452,2]
[348131026,1736347835928,-151.0,0.00019452,2]
[348131035,1736347836024,-151.0,0.00019452,2]
[348131038,1736347836034,-500.0,0.00019452,3]
[348131039,1736347836044,-500.0,0.00019452,3]
[348131040,1736347836055,-151.0,0.00019452,2]
[348131041,1736347836065,-151.0,0.00019452,2]
[348131043,1736347836075,-2738.15,0.00019452,3]
[348131045,1736347836088,-500.0,0.00019452,3]
[348131047,1736347836098,-500.0,0.00019452,3]
[348131048,1736347836107,-295.479101,0.00019452,2]
[348131050,1736347836117,-500.0,0.00019452,3]
[348131052,1736347836127,-500.0,0.00019452,3]
[348131054,1736347836137,-151.0,0.00019452,2]
[348131056,1736347836146,-500.0,0.00019452,3]
[348131058,1736347836156,-158.171818,0.00019452,2]
[348131060,1736347836165,-500.0,0.00019452,3]
[348131062,1736347836175,-4640.49,0.00019452,3]
[348131064,1736347836185,-158.171818,0.00019452,2]
[348131066,1736347836194,-500.0,0.00019452,3]
[348131068,1736347836204,-151.0,0.00019452,2]
[348131070,1736347836214,-151.0,0.00019452,2]
[348131072,1736347836223,-500.0,0.00019452,3]
[348131074,1736347836237,-500.0,0.00019452,3]
[348131076,1736347836246,-1746.84,0.00019452,3]
[348131078,1736347836255,-500.0,0.00019452,3]
[348131080,1736347836264,-500.0,0.00019452,3]
[348131082,1736347836274,-500.0,0.00019452,3]
[348131084,1736347836284,-151.0,0.00019452,2]
[348131086,1736347836293,-165.695992,0.00019452,2]
[348131088,1736347836302,-500.0,0.00019452,3]
[348131089,1736347836313,-159.168991,0.00019452,2]
[348131091,1736347836323,-165.695992,0.00019452,2]
[348131093,1736347836335,-500.0,0.00019452,3]
[348131095,1736347836344,-500.0,0.00019452,3]
[348131097,1736347836355,-151.0,0.00019452,2]
[348131099,1736347836365,-151.0,0.00019452,2]
[348131102,1736347836375,-500.0,0.00019452,3]
[348131104,1736347836385,-151.0,0.00019452,2]
[348131105,1736347836395,-152.561927,0.00019452,2]
[348131107,1736347836404,-500.0,0.00019452,3]
[348131110,1736347836414,-151.0,0.00019452,2]
[348131112,1736347836425,-151.0,0.00019452,2]
[348131114,1736347836434,-151.0,0.00019452,2]
[348131116,1736347836444,-500.0,0.00019452,3]
[348131117,1736347836453,-500.0,0.00019452,3]
[348131119,1736347836463,-1313.51,0.00019452,3]
[348131121,1736347836472,-8500.53639445,0.00019452,3]
[348131185,1736347838596,-265.19047943,0.00019173,2]
[348131186,1736347838605,-401.01259714,0.00019178,2]
[348131187,1736347838617,-98.98740286,0.00019178,2]
[348131188,1736347838627,-443.06259714,0.00019178,2]
[348131189,1736347838638,-119.00740286,0.00019178,2]
[348131190,1736347838648,-1204.05,0.00019178,2]
[348131191,1736347838658,-10029.11360555,0.00019452,3]
[348131192,1736347838667,-500.0,0.00019452,3]
[348131193,1736347838677,-671.3,0.00019452,3]
[348131194,1736347838686,-500.0,0.00019452,3]
[348131195,1736347838695,-151.0,0.00019452,2]
[348131196,1736347838704,-500.0,0.00019452,3]
[348131197,1736347838713,-881.98,0.00019452,3]
[348131198,1736347838723,-151.0,0.00019452,2]
[348131199,1736347838731,-498.41143554,0.00019452,3]
[348131200,1736347838741,-810.98,0.00019452,3]
[348131201,1736347838750,-500.0,0.00019452,3]
[348131202,1736347838759,-688.48,0.00019452,3]
[348131203,1736347838769,-2400.37,0.00019452,3]
[348131204,1736347838778,-297.76234793,0.00019452,3]
[348131205,1736347838789,-202.23765207,0.00019452,3]
[348131206,1736347838799,-297.76234793,0.00019452,3]
[348131238,1736347840619,-202.23765207,0.00019452,3]
[348131240,1736347840629,-833.25,0.00019452,3]
[348131243,1736347840640,-151.0,0.00019452,2]
[348131245,1736347840649,-151.0,0.00019452,2]
[348131247,1736347840659,-526.7,0.00019452,3]
[348131249,1736347840668,-535.97,0.00019452,3]
[348131251,1736347840679,-635.67,0.00019452,3]
[348131253,1736347840688,-500.0,0.00019452,3]
[348131255,1736347840698,-500.0,0.00019452,3]
[348131257,1736347840708,-500.0,0.00019452,3]
[348131260,1736347840718,-1403.82,0.00019452,3]
[348131262,1736347840727,-608.55116999,0.00019452,3]
[348131263,1736347840737,-500.0,0.00019452,3]
[348131265,1736347840747,-151.0,0.00019452,2]
[348131267,1736347840756,-509.62451974,0.00019452,3]
[348131270,1736347840766,-151.0,0.00019452,2]
[348131271,1736347840776,-500.0,0.00019452,3]
[348131272,1736347840786,-151.0,0.00019452,2]
[348131273,1736347840796,-1504.0,0.00019452,3]
[348131274,1736347840805,-816.35,0.00019452,3]
[348131275,1736347840815,-1113.1,0.00019452,3]
[348131276,1736347840826,-500.0,0.00019452,3]
[348131277,1736347840838,-500.0,0.00019452,3]
[348131278,1736347840848,-151.0,0.00019452,2]
[348131279,1736347840858,-151.0,0.00019452,2]
[348131281,1736347840867,-738.38,0.00019452,3]
[348131283,1736347840877,-668.31,0.00019452,3]
[348131285,1736347840887,-500.0,0.00019452,3]
[348131288,1736347840901,-500.0,0.00019452,3]
[348131290,1736347840911,-500.0,0.00019452,3]
[348131292,1736347840921,-500.0,0.00019452,3]
[348131294,1736347840930,-500.0,0.00019452,3]
[348131296,1736347840941,-500.0,0.00019452,3]
[348131298,1736347840950,-500.0,0.00019452,3]
[348131300,1736347840960,-500.0,0.00019452,3]
[348131302,1736347840969,-562.07,0.00019452,3]
[348131304,1736347840979,-1204.05,0.00019452,3]
[348131306,1736347840989,-1333.06510512,0.000195,2]
[348131324,1736347841161,-1670.02863645,0.000195,2]
[348131326,1736347841171,-151.0,0.000195,2]
[348131328,1736347841180,-151.0,0.000195,2]
[348131330,1736347841191,-333.12922254,0.00019599,2]
[348131332,1736347841200,-179.29690154,0.00019599,2]
[348131334,1736347841209,-1204.39523947,0.000196,2]
[348131336,1736347841221,-506.06236576,0.000196,2]
[348131338,1736347841236,-736.55332444,0.000196,2]
[348131341,1736347841248,-671.77936835,0.000196,2]
[348131343,1736347841261,-1489.01117913,0.000196,2]
[348131345,1736347841281,-4607.80147715,0.000196,2]
[348131347,1736347841291,-4607.80147715,0.000196,2]
[348131349,1736347841301,-4607.80147715,0.000196,2]
[348131351,1736347841312,-151.0,0.000196,2]
[348131353,1736347841322,-158.171818,0.000196,2]
[348131355,1736347841331,-158.171818,0.000196,2]
[348131357,1736347841345,-151.0,0.000196,2]
[348131359,1736347841355,-151.0,0.000196,2]
[348131361,1736347841364,-151.495035,0.000196,2]
[348131363,1736347841373,-165.695992,0.000196,2]
[348131365,1736347841382,-165.695992,0.000196,2]
[348131367,1736347841391,-151.0,0.000196,2]
[348131369,1736347841401,-151.0,0.000196,2]
[348131371,1736347841411,-151.0,0.000196,2]
[348131373,1736347841421,-151.0,0.000196,2]
[348131375,1736347841431,-151.0,0.000196,2]
[348131377,1736347841440,-186.665896,0.000196,2]
[348131379,1736347841450,-151.0,0.000196,2]
[348131382,1736347841461,-2935.87090218,0.00019608,2]
[348131384,1736347841470,-530.86224498,0.00019721,2]
[348131386,1736347841479,-500.0,0.00019721,2]
[348131388,1736347841489,-151.0,0.00019725,2]
[348131390,1736347841498,-203.230417,0.00019725,2]
[348131392,1736347841508,-203.230417,0.00019725,2]
[348131394,1736347841518,-715.667858,0.00019725,2]
[348131396,1736347841528,-387.056497,0.00019725,2]
[348131398,1736347841537,-387.056497,0.00019725,2]
[348131400,1736347841546,-151.0,0.00019725,2]
[348131402,1736347841556,-22485.84617935,0.00019726,5]
[348131404,1736347841565,-5668.53929018,0.00019726,5]
[348131406,1736347841575,-171.520228,0.00019726,2]
[348131408,1736347841588,-171.520228,0.00019726,2]
[348131410,1736347841598,-171.520228,0.00019726,2]
[348131412,1736347841607,-171.520228,0.00019726,2]
[348131414,1736347841616,-151.0,0.00019726,2]
[348131416,1736347841626,-203.230417,0.00019726,2]
[348131418,1736347841635,-203.230417,0.00019726,2]
[348131420,1736347841645,-151.0,0.00019726,2]
[348131422,1736347841656,-151.0,0.00019726,2]
[348131424,1736347841665,-715.667858,0.00019726,2]
[348131426,1736347841675,-500.0,0.00019726,3]
[348131428,1736347841685,-500.0,0.00019726,3]
[348131430,1736347841694,-387.056497,0.00019726,2]
[348131432,1736347841703,-387.056497,0.00019726,2]
[348131434,1736347841713,-151.0,0.00019726,2]
[348131436,1736347841723,-151.0,0.00019726,2]
[348131438,1736347841732,-151.0,0.00019726,2]
[348131440,1736347841741,-151.0,0.00019726,2]
[348131442,1736347841751,-500.0,0.00019726,3]
[348131444,1736347841760,-151.0,0.00019726,2]
[348131446,1736347841770,-151.0,0.00019726,2]
[348131448,1736347841779,-151.0,0.00019726,2]
[348131450,1736347841789,-151.0,0.00019726,2]
[348131452,1736347841798,-151.0,0.00019726,2]
[348131454,1736347841808,-151.0,0.00019726,2]
[348131456,1736347841818,-2738.15,0.00019726,3]
[348131458,1736347841827,-500.0,0.00019726,3]
[348131460,1736347841841,-500.0,0.00019726,3]
[348131462,1736347841851,-500.0,0.00019726,3]
[348131464,1736347841861,-151.0,0.00019726,2]
[348131466,1736347841871,-151.0,0.00019726,2]
[348131468,1736347841880,-500.0,0.00019726,3]
[348131470,1736347841890,-158.171818,0.00019726,2]
[348131472,1736347841900,-500.0,0.00019726,3]
[348131474,1736347841909,-158.171818,0.00019726,2]
[348131476,1736347841918,-4640.49,0.00019726,3]
[348131478,1736347841928,-158.171818,0.00019726,2]
[348131480,1736347841940,-158.171818,0.00019726,2]
[348131482,1736347841950,-500.0,0.00019726,3]
[348131484,1736347841959,-151.0,0.00019726,2]
[348131486,1736347841969,-151.0,0.00019726,2]
[348131488,1736347841978,-151.0,0.00019726,2]
[348131490,1736347841988,-151.0,0.00019726,2]
[348131492,1736347841997,-500.0,0.00019726,3]
[348131494,1736347842007,-1746.84,0.00019726,3]
[348131496,1736347842016,-500.0,0.00019726,3]
[348131498,1736347842025,-500.0,0.00019726,3]
[348131500,1736347842035,-165.695992,0.00019726,2]
[348131502,1736347842045,-165.695992,0.00019726,2]
[348131504,1736347842054,-500.0,0.00019726,3]
[348131506,1736347842064,-500.0,0.00019726,3]
[348131508,1736347842073,-165.695992,0.00019726,2]
[348131510,1736347842087,-165.695992,0.00019726,2]
[348131512,1736347842096,-500.0,0.00019726,3]
[348131514,1736347842105,-151.0,0.00019726,2]
[348131516,1736347842115,-151.0,0.00019726,2]
[348131518,1736347842124,-151.0,0.00019726,2]
[348131520,1736347842133,-151.0,0.00019726,2]
[348131522,1736347842142,-500.0,0.00019726,3]
[348131524,1736347842152,-151.0,0.00019726,2]
[348131527,1736347842162,-281.892938,0.00019726,2]
[348131529,1736347842171,-500.0,0.00019726,3]
[348131531,1736347842182,-18529.65,0.00019726,3]
[348131533,1736347842192,-500.0,0.00019726,3]
[348131535,1736347842201,-671.3,0.00019726,3]
[348131537,1736347842211,-500.0,0.00019726,3]
[348131539,1736347842220,-151.0,0.00019726,2]
[348131541,1736347842229,-500.0,0.00019726,3]
[348131543,1736347842240,-151.0,0.00019726,2]
[348131545,1736347842251,-881.98,0.00019726,3]
[348131547,1736347842260,-167.391907,0.00019726,2]
[348131549,1736347842271,-810.98,0.00019726,3]
[348131551,1736347842281,-500.0,0.00019726,3]
[348131553,1736347842291,-688.48,0.00019726,3]
[348131555,1736347842301,-2400.37,0.00019726,3]
[348131557,1736347842310,-500.0,0.00019726,3]
[348131559,1736347842319,-500.0,0.00019726,3]
[348131561,1736347842330,-833.25,0.00019726,3]
[348131563,1736347842343,-151.0,0.00019726,2]
[348131565,1736347842352,-151.0,0.00019726,2]
[348131567,1736347842362,-526.7,0.00019726,3]
[348131569,1736347842372,-535.97,0.00019726,3]
[348131571,1736347842384,-635.67,0.00019726,3]
[348131573,1736347842395,-500.0,0.00019726,3]
[348131575,1736347842406,-500.0,0.00019726,3]
[348131577,1736347842416,-500.0,0.00019726,3]
[348131579,1736347842426,-1403.82,0.00019726,3]
[348131581,1736347842436,-500.0,0.00019726,3]
[348131583,1736347842446,-500.0,0.00019726,3]
[348131585,1736347842456,-1504.0,0.00019726,3]
[348131587,1736347842466,-816.35,0.00019726,3]
[348131589,1736347842475,-1113.1,0.00019726,3]
[348131591,1736347842484,-500.0,0.00019726,3]
[348131593,1736347842494,-500.0,0.00019726,3]
[348131595,1736347842504,-151.0,0.00019726,2]
[348131597,1736347842514,-151.0,0.00019726,2]
[348131599,1736347842523,-738.38,0.00019726,3]
[348131601,1736347842532,-668.31,0.00019726,3]
[348131603,1736347842542,-500.0,0.00019726,3]
[348131605,1736347842551,-500.0,0.00019726,3]
[348131607,1736347842560,-500.0,0.00019726,3]
[348131609,1736347842569,-500.0,0.00019726,3]
[348131611,1736347842579,-500.0,0.00019726,3]
[348131613,1736347842591,-500.0,0.00019726,3]
[348131615,1736347842601,-562.07,0.00019726,3]
[348131617,1736347842610,-1204.05,0.00019726,3]
[348131619,1736347842619,-592.70738096,0.00019739,2]
[348131621,1736347842629,-500.0,0.000198,2]
[348131622,1736347842638,-602.0,0.000198,2]
[348131623,1736347842647,-165.695992,0.000198,2]
[348131624,1736347842657,-165.695992,0.000198,2]
[348131625,1736347842666,-151.0,0.000198,2]
[348131626,1736347842675,-3000.0,0.00019872,2]
[348131627,1736347842685,-1419.08951334,0.00019873,2]
[348131628,1736347842694,-151.0,0.000199,2]
[348131629,1736347842703,-151.0,0.000199,2]
[348131630,1736347842713,-158.171818,0.000199,2]
[348131631,1736347842722,-158.171818,0.000199,2]
[348131632,1736347842731,-151.0,0.000199,2]
[348131633,1736347842741,-151.0,0.000199,2]
[348131634,1736347842750,-151.0,0.000199,2]
[348131635,1736347842759,-185.365058,0.000199,2]
[348131636,1736347842768,-3127.97774867,0.000199,2]
[348131637,1736347842778,-500.0,0.00019972,2]
[348131638,1736347842787,-151.0,0.00019972,2]
[348131639,1736347842797,-288.626245,0.00019972,2]
[348131640,1736347842807,-500.0,0.00019973,2]
[348131641,1736347842816,-471.54674228,0.00019973,2]
[348131642,1736347842825,-309.99678123,0.00019973,2]
[348131643,1736347842838,-500.0,0.00019973,2]
[348131645,1736347842847,-500.0,0.00019973,2]
[348131646,1736347842856,-500.0,0.00019973,2]
[348131647,1736347842866,-203.230417,0.00019973,2]
[348131648,1736347842875,-203.230417,0.00019973,2]
[348131649,1736347842884,-715.667858,0.00019973,2]
[348131650,1736347842967,-715.667858,0.00019973,2]
[348131651,1736347842977,-387.056497,0.00019973,2]
[348131652,1736347842987,-387.056497,0.00019973,2]
[348131653,1736347842996,-151.0,0.00019973,2]
[348131654,1736347843006,-151.0,0.00019973,2]
[348131655,1736347843015,-40867.04,0.0001998,2]
[348131656,1736347843025,-68887.87563263,0.0001999,7]
[348131657,1736347843035,-151.0,0.0001999,2]
[348131658,1736347843044,-171.520228,0.0001999,2]
[348131659,1736347843054,-171.520228,0.0001999,2]
[348131660,1736347843064,-151.0,0.0001999,2]
[348131661,1736347843073,-203.230417,0.0001999,2]
[348131662,1736347843087,-203.230417,0.0001999,2]
[348131663,1736347843096,-151.0,0.0001999,2]
[348131665,1736347843106,-151.0,0.0001999,2]
[348131666,1736347843115,-151.0,0.0001999,2]